Cogmind - Beta 9.3 @@@ ROGUE MODE // 2019.12.31 @ 18:37:16 // Winter2019/RPGLIKE Player: Mitaro Result: Smashed by cave-in Performance ------------- Evolutions (2) 1000 Regions Visited (4) 800 Robots Destroyed (22) 110 Value Destroyed (700) 700 Prototype IDs (2) 40 Alien Tech Used (0) 0 Bonus (200) 200 TOTAL SCORE: 2850 Bonus ------- Entered Garrisons 200 Cogmind --------- Core Integrity 0/1400 Matter 300/300 Energy 276/280 System Corruption 0% Temperature Cool (2) Movement Walking (120) Location -8/Garrison Parts ------- > --- POWER (1) -------- Heavy Ion Engine > --- PROPULSION (2) --- Improved Aluminum Leg Improved Aluminum Leg > --- UTILITY (2) ------ Improved Terrain Scanner Medium Armor Plating > --- WEAPON (2) ------- Mining Claw Mining Claw > --- INVENTORY (4) ---- Light Nuclear Core Carbon-fiber Leg Mining Claw Mining Claw Peak State ------------ > --- POWER ------------ Heavy Ion Engine > --- PROPULSION ------- Improved Aluminum Leg Improved Aluminum Leg > --- UTILITY ---------- Improved Terrain Scanner Medium Armor Plating > --- WEAPON ----------- Mining Claw Mining Claw > --- INVENTORY -------- Carbon-fiber Leg Mining Claw Mining Claw [Rating: 13] Favorites ----------- Power Improved Ion Engine Engine Improved Ion Engine Propulsion Improved Aluminum Leg Treads Light Treads Leg Improved Aluminum Leg Hover Unit Hover Unit Utility Improved Terrain Scanner Device Improved Terrain Scanner Processor Advanced Targeting Computer Protection Medium Armor Plating Weapon Mining Claw Energy Gun Medium Laser Slashing Weapon Mining Claw Build | -11 -10 -9 -8 -8 ------- Run | Scr Mat Mat Mat Gar Slots Evolved 3 | . . 3 . . Power . | . . . . . Propulsion 1 | . . 1 . . Utility 1 | . . 1 . . Weapon 1 | . . 1 . . Parts Attached 22 | 5 1 15 1 . Power 4 | 1 . 2 1 . Engine 4 | 1 . 2 1 . Core . | . . . . . Reactor . | . . . . . Propulsion 7 | 2 1 4 . . Treads 3 | 1 . 2 . . Leg 3 | 1 . 2 . . Wheel . | . . . . . Hover 1 | . 1 . . . Flight . | . . . . . Utility 6 | 1 . 5 . . Device 2 | 1 . 1 . . Storage . | . . . . . Processor 1 | . . 1 . . Hackware . | . . . . . Protection 3 | . . 3 . . Artifact . | . . . . . Weapon 5 | 1 . 4 . . Energy Gun 2 | 1 . 1 . . Energy Cannon . | . . . . . Ballistic Gun . | . . . . . Ballistic Cannon . | . . . . . Launcher . | . . . . . Special Weapon . | . . . . . Impact Weapon . | . . . . . Slashing Weapon 3 | . . 3 . . Piercing Weapon . | . . . . . Special Melee Weapon . | . . . . . Unidentified Prototypes . | . . . . . Parts Lost . | . . . . . Power . | . . . . . Propulsion . | . . . . . Utility . | . . . . . Weapon . | . . . . . Highest Loss Streak . | . . . . . Average Slot Usage (%) 97 | . 100 94 100 100 Engine 16 | . 25 14 14 14 Treads 11 | . 21 13 . . Leg 11 | . . 7 28 28 Hover 2 | . 3 4 . . Device 16 | . 25 14 14 14 Processor 1 | . . 3 . . Protection 9 | . . 10 14 14 Energy Gun 6 | . 25 2 . . Slashing Weapon 18 | . . 21 28 28 Naked Turns . | . . . . . Heaviest Build 20 | 8 8 19 20 20 Greatest Support 40 | 20 20 40 26 26 Greatest Overweight (x) 1 | . 1 1 . . Average Overweight (x) . | . . . . . Largest Inventory Capacity 4 | . . 3 4 4 Average Capacity 2 | . . 2 3 4 Most Carried 4 | . . 3 4 4 Average Carried 2 | . . 2 3 4 Final Capacity 4 | . . 3 4 4 Final Carried 4 | . . 3 4 4 Class Distribution -------------------- 78% | Mutant 21% | Scavenger-Mutant Dominant Class ---------------- Mutant | -10/Materials Mutant | -9/Materials Mutant | -8/Materials Mutant | -8/Garrison Resources | -11 -10 -9 -8 -8 ----------- Run | Scr Mat Mat Mat Gar Matter Collected 420 | 240 20 100 50 10 Remotely . | . . . . . Salvage Created 895 | 19 270 390 138 78 Parts 51 | 2 6 35 3 5 Haulers Intercepted 1 | . . 1 . . Recyclers Shooed . | . . . . . Parts Field Recycled . | . . . . . Retrieved Matter . | . . . . . Parts Self-Destructed . | . . . . . Prevented . | . . . . . Kills | -11 -10 -9 -8 -8 ------- Run | Scr Mat Mat Mat Gar Combat Hostiles Destroyed 20 | . 7 10 2 1 Melee 13 | . . 10 2 1 Guns 6 | . 6 . . . Classes Destroyed 5 | 1 2 2 . . Tunneler 1 | 1 . . . . Hauler 1 | . . 1 . . Swarmer 5 | . 3 2 . . Grunt 9 | . 4 3 2 . Sentry 6 | . . 5 . 1 Best Kill Streak 3 | 1 3 2 1 1 Combat Bots Only 3 | . 3 2 1 1 Max Kills in Single Turn 1 | 1 1 1 1 1 Gunslinging . | . . . . . Exploded . | . . . . . Melee 1 | . . 1 1 1 Uniques/NPCs Destroyed . | . . . . . Combat | -11 -10 -9 -8 -8 -------- Run | Scr Mat Mat Mat Gar Damage Taken 2319 | . 434 827 303 755 Core 1918 | . 376 683 243 616 Absorbed by Shields . | . . . . . Redirected to Core 1389 | . 188 476 210 515 Core Remaining (%) 61 | 100 53 32 . . Volleys Fired 49 | 2 47 . . . Largest 1 | 1 1 . . . Hottest 50 | 50 50 . . . Shots Fired 49 | 2 47 . . . Gun 49 | 2 47 . . . Cannon . | . . . . . Launcher . | . . . . . Special . | . . . . . Kinetic . | . . . . . Thermal 49 | 2 47 . . . Explosive . | . . . . . Electromagnetic . | . . . . . Robot Hit Streak 20 | 2 20 . . . Robot Miss Streak 2 | . 2 . . . Penetration Max . | . . . . . Secondary Targets . | . . . . . Shots Hit Robots 89 | 2 40 26 12 9 Core Hits 30 | 1 12 11 4 2 Critical Hits . | . . . . . Critical Kills . | . . . . . Critical Parts Destroyed . | . . . . . Melee Attacks 80 | . . 36 22 22 Impact . | . . . . . Slashing 80 | . . 36 22 22 Piercing . | . . . . . Sneak Attacks 3 | . . 3 . . Combat Hostiles . | . . . . . Follow-up Attacks 6 | . . 2 3 1 Damage Inflicted 1750 | 25 513 718 285 209 Guns 538 | 25 513 . . . Cannons . | . . . . . Explosions . | . . . . . Melee 1212 | . . 718 285 209 Ramming . | . . . . . Kinetic . | . . . . . Thermal 538 | 25 513 . . . Explosive . | . . . . . Electromagnetic . | . . . . . Impact . | . . . . . Slashing 1212 | . . 718 285 209 Piercing . | . . . . . Highest Corruption . | . . . . . Average Corruption . | . . . . . Corruption Purged . | . . . . . Overload Shots . | . . . . . Overflow Damage 33 | . . 27 6 . Projectiles . | . . . . . Explosions . | . . . . . Melee 33 | . . 27 6 . Knockbacks . | . . . . . Impact . | . . . . . Kinetic . | . . . . . Secondary . | . . . . . Self-Inflicted Damage . | . . . . . Shots . | . . . . . Rammed . | . . . . . Targets Rammed . | . . . . . Kicked . | . . . . . Crushed . | . . . . . Highest Temperature . | . . . . . Average Temperature . | . . . . . Received Heat Transfer 792 | . 204 336 180 72 Siege Activations . | . . . . . Robots Corrupted . | . . . . . Combat Hostiles . | . . . . . Parts Fried . | . . . . . Impact Corruptions . | . . . . . Robots Melted 1 | . 1 . . . Combat Hostiles 1 | . 1 . . . Parts Melted 2 | . 2 . . . Heat Transferred 1591 | 74 1517 . . . Parts Sabotaged . | . . . . . Parts Stolen . | . . . . . Parts Stripped . | . . . . . Power Chain Reactions . | . . . . . Missiles Intercepted . | . . . . . Alert | -11 -10 -9 -8 -8 ------- Run | Scr Mat Mat Mat Gar Peak Influence 319 | 5 190 319 143 127 Average Influence 137 | . 98 189 116 110 Maximum Alert Level 1 | . . 1 . . Low Security (%) 77 | 100 100 47 100 100 Level 1 22 | . . 52 . . Level 2 . | . . . . . Level 3 . | . . . . . Level 4 . | . . . . . Level 5 . | . . . . . High Security . | . . . . . Max Security . | . . . . . Squads Dispatched 1 | . 1 . . . Investigation . | . . . . . Extermination . | . . . . . Reinforcement 1 | . 1 . . . Assault . | . . . . . Garrison . | . . . . . Intercept . | . . . . . Construction Impeded . | . . . . . Haulers Reinforced . | . . . . . Stealth | -11 -10 -9 -8 -8 --------- Run | Scr Mat Mat Mat Gar Distress Signals 1 | . . 1 . . Communications Jammed . | . . . . . Distress Signals . | . . . . . Times Spotted 33 | . 10 18 2 3 Peak Tracking Total 6 | . 4 6 2 2 Tactical Retreats 6 | . 2 4 . . Traps | -11 -10 -9 -8 -8 ------- Run | Scr Mat Mat Mat Gar Traps Triggered 1 | . . . . 1 Indirectly . | . . . . . Trap Hack Attempts . | . . . . . Triggered . | . . . . . Disarmed . | . . . . . Reprogrammed . | . . . . . Reused . | . . . . . Traps Extracted . | . . . . . Installed . | . . . . . Triggered . | . . . . . Machines | -11 -10 -9 -8 -8 ---------- Run | Scr Mat Mat Mat Gar Machines Disabled . | . . . . . Max in Single Turn . | . . . . . Machines Sabotaged . | . . . . . Garrisons Compromised . | . . . . . Overloaded Fab Kills . | . . . . . Fab Network Shutdowns . | . . . . . Hacking | -11 -10 -9 -8 -8 --------- Run | Scr Mat Mat Mat Gar Machines Accessed 10 | . 3 5 2 . Terminals 7 | . 3 3 1 . Fabricators . | . . . . . Repair Stations . | . . . . . Recycling Units . | . . . . . Scanalyzers 2 | . . 2 . . Garrison Access 1 | . . . 1 . Total Hacks 29 | . 10 12 7 . Successful 17 | . 4 9 4 . Failed 12 | . 6 3 3 . Catastrophic 1 | . . 1 . . Database Lockouts . | . . . . . Manual 8 | . 2 1 5 . Terminals 22 | . 10 6 6 . Fabricators . | . . . . . Repair Stations . | . . . . . Recycling Units . | . . . . . Scanalyzers 6 | . . 6 . . Garrison Access 1 | . . . 1 . Terminal Hacks 6 | . 3 2 1 . Prototype ID Bank 1 | . . . 1 . Branch Access Points 1 | . 1 . . . Alert Level 1 | . 1 . . . Locate Traps 2 | . 1 1 . . Zone Layout 1 | . . 1 . . Fabricator Hacks . | . . . . . Repair Station Hacks . | . . . . . Recycling Unit Hacks . | . . . . . Scanalyzer 6 | . . 6 . . Insert Component 3 | . . 3 . . Analyze 3 | . . 3 . . Garrison Access Hacks 1 | . . . 1 . Unlock Access 1 | . . . 1 . Unauthorized Hacks 10 | . 2 2 6 . Terminals 4 | . 1 1 2 . Botnet 3 | . 1 1 1 . Operators 1 | . . . 1 . Fabricators . | . . . . . Repair Stations . | . . . . . Recycling Units . | . . . . . Scanalyzers . | . . . . . Garrison Access . | . . . . . Data Cores Recovered . | . . . . . Used . | . . . . . Hacking Detections 9 | . 3 4 2 . Full Trace Events . | . . . . . Feedback Events . | . . . . . Feedback Blocked . | . . . . . Robot Schematics Acquired . | . . . . . Robots Built . | . . . . . Matter . | . . . . . Time . | . . . . . Total Robot Build Rating . | . . . . . Part Schematics Acquired 2 | . . 2 . . Parts Built . | . . . . . Matter . | . . . . . Time . | . . . . . Total Part Build Rating . | . . . . . Parts Repaired . | . . . . . Time . | . . . . . Parts Recycled . | . . . . . Recycled Matter . | . . . . . Retrieved Matter . | . . . . . Retrieved Components . | . . . . . Parts Scanalyzed 2 | . . 2 . . Part Schematics Acquired 2 | . . 2 . . Parts Damaged . | . . . . . Bothacking | -11 -10 -9 -8 -8 ------------ Run | Scr Mat Mat Mat Gar Used RIF Installer . | . . . . . Robots Hacked . | . . . . . Non-combat . | . . . . . Combat . | . . . . . Robot Hacks Applied . | . . . . . Relay Couplers Released . | . . . . . Robots Rewired . | . . . . . Allies Hacked . | . . . . . Hacks Repelled . | . . . . . Allies | -11 -10 -9 -8 -8 -------- Run | Scr Mat Mat Mat Gar Total Allies . | . . . . . Largest Group . | . . . . . Highest-Rated Group . | . . . . . Highest-Rated Ally . | . . . . . Total Orders . | . . . . . Ally Attacks . | . . . . . Total Damage . | . . . . . Kills . | . . . . . Allies Corrupted . | . . . . . Allies Melted . | . . . . . Intel | -11 -10 -9 -8 -8 ------- Run | Scr Mat Mat Mat Gar Robot Analysis Total . | . . . . . Derelict Logs Recovered . | . . . . . Drone Launches . | . . . . . Drone Recoveries . | . . . . . Exploration | -11 -10 -9 -8 -8 ------------- Run | Scr Mat Mat Mat Gar Turns Passed 1430 | 66 316 622 118 308 Spaces Moved 791 | 42 145 357 46 201 Core 8 | 8 . . . . Treads 270 | 27 110 133 . . Legs 333 | 7 . 79 46 201 Wheels . | . . . . . Hover 180 | . 35 145 . . Flight . | . . . . . Fastest Speed 50 | 50 120 60 120 120 Average Speed 126 | 132 150 121 120 120 Slowest Speed 160 | 160 160 160 120 120 Overloaded Moves . | . . . . . Propulsion Burnouts . | . . . . . Robots Hopped . | . . . . . Cave-ins Triggered 1 | . . . . 1 Exploration Rate (%) 18 | 3 32 26 6 23 Regions Visited 4 Branch Regions . Pre-discovered Areas . | . . . . . Known Exits Taken 1 | . . . 1 . Unknown Exits Taken 3 | 1 1 1 . . Scrap Searched . | . . . . . Spaces Dug . | . . . . . Terrain Destroyed . | . . . . . Melee . | . . . . . Projectile . | . . . . . AOE . | . . . . . Actions | -11 -10 -9 -8 -8 --------- Run | Scr Mat Mat Mat Gar Total 1025 | 49 196 479 70 231 Wait 49 | . 3 30 2 14 Move 786 | 41 144 356 45 200 Hop . | . . . . . Pick Up 8 | . . 6 2 . Fast Attach 16 | 5 1 10 . . Attach 2 | . . 1 1 . Detach . | . . . . . Swap 4 | . . 4 . . Drop 17 | 1 1 14 1 . Fire 49 | 2 47 . . . Melee 70 | . . 34 19 17 Ram . | . . . . . Kick . | . . . . . Crush . | . . . . . Escape Stasis . | . . . . . Rewire . | . . . . . Trap . | . . . . . Miscellaneous 24 | . . 24 . . Route ------- -11/Scrapyard -10/Materials (discovered 3 exits: *Mat / Min x2) -9/Materials -8/Materials (discovered 2 exits: [Sto] / Gar) -8/Garrison History --------- Turn | Location | Event 15 | -11/Scrapyard | Discovered new exit (range 15) 67 | -11/Scrapyard | Entered Materials 312 | -10/Materials | Build established: Mutant 323 | -10/Materials | Identified exit to Mines 362 | -10/Materials | Discovered new exit (range 14) 383 | -10/Materials | Entered another Materials area 385 | -9/Materials | Reached level 2 388 | -9/Materials | Upgraded with Propulsion slot (x1) 388 | -9/Materials | Upgraded with Utility slot (x1) 511 | -9/Materials | Core integrity fell below 50% 586 | -9/Materials | Reached level 3 596 | -9/Materials | Upgraded with Weapon slot (x1) 722 | -9/Materials | Core integrity fell below 20% 982 | -9/Materials | Discovered new exit (range 16) 1005 | -9/Materials | Entered another Materials area 1006 | -8/Materials | Core integrity fell below 50% 1007 | -8/Materials | Reached level 4 1111 | -8/Materials | Discovered new exit (range 15) 1117 | -8/Materials | Identified exit to Garrison 1123 | -8/Materials | Entered Garrison 1125 | -8/Garrison | Reached level 5 1397 | -8/Garrison | Spotted B-75 Beast 1426 | -8/Garrison | Core integrity fell below 20% 1431 | -8/Garrison | Crushed by falling debris 1431 | -8/Garrison | Smashed by cave-in Last Messages --------------- 01117_ Connecting with Garrison Access... >>Unlock Access door unlocked. 01117_ EXIT=UNLOCKED: GARRISON LOCATION=GARRISON GOAL=ESCAPE 01125_ Reached level 5. 01129_ Upgraded: Core Integrity (+300) 01129_ Upgraded: Melee Accuracy (+10) 01244_ Extracted 10 matter. 01274_ Y-45 Defender destroyed. 01396_ Triggered Alarm Trap. 01396_ An alarm sounds. 01412_ Knocked back. 01425_ Slug penetrates Wall. 01427_ Mining Claw follow-up attack on B-75 Beast. 01428_ Knocked back. 01428_ Slug penetrates Wall. 01431_ The unstable cave ceiling collapses. 01431_ Crushed by falling debris. Map ----- +----------------------------------------------------+ | ######### ## ########################????? | | ######### ## ######################?#????? | | ######### ###"""#### #######################?##??? | | ######### ### # ########################????? | | ######### ########## #########################?#?? | | ######### ########## #########################???? | | ######### ########## #############"#############?? | | # # ########## #############"############??? | | # ##!!!## ########## ## ########""""""#########? | | # ####### ############# ### " "########?? | | # # # # " "#######?#? | | # ##!!!## ##### ### "#########? | | # ####### ##### ############ " "########?? | | # + ##### ### ######## """ ""#########? | | # ##!!!## ##### ### ######## " #########?? | | # ####### ##### ### ######## #########?? | | # ####### ### # ### ######## #########?? | | # ####### =*# ######## ##########? | | # #############%!############ ########### | | # ####### #####[!################# ############?## | | # ####### ##### ################# #############?? | | # ####### ##### ################# ############### | | # ############# #############!!## #############?? | | # ## + #############?# | | # + ##############?##? | | ####^ ######### ########@#"+#!!###############??? | | # ## ######### #######BB; ##############?###?#? | | # ## ######### #######BB; ################?#??? | | # ## ######### ########## ###############?###?? | | #### ######### ########## h###################?? | | ## ######### ########## ################?##?? | | ""## ######### ####### ##############???? | | ######## ####### ###############??? | | ####### !#############????? | | # # ############?#???? | | ## ################# ]] !!!#########????????? | | ## ################################??#???????? | | ? "?###############################?????????? | | ? " ######?###################??????????????? | | ??? ? ? ##################?##?????????????? | | ? ????? ??????#????#?#########???#??????????????? | | ?????????????????????????#?#?????#???????????????? | | ?????????????????????????????????????????????????? | | ?????????????????????????????????????????????????? | | ?????????????????????????????????????????????????? | | ?????????????????????????????????????????????????? | | ?????????????????????????????????????????????????? | | ?????????????????????????????????????????????????? | | ?????????????????????????????????????????????????? | | ?????????????????????????????????????????????????? | +----------------------------------------------------+ Best States ------------- Heat Dissipation 85 Energy Generation 14 Energy Capacity 280 Matter Stores 300 Matter Capacity 300 Sight Range 16 Terrain Scan Range 16 Terrain Scan Density 1010 Armor Coverage 225 Evasion (%) 53 Targeting Accuracy 8 Recoil Reduction 2 Item Schematics ----------------- Hvy. Ion Engine | -9/Materials | Scanalyzed Mining Claw | -9/Materials | Scanalyzed Robot Schematics ------------------ None Fabricated ------------ Nothing Alien Tech Used ----------------- None Achievements -------------- None Challenges ------------ None RPGLIKE | -11 -10 -9 -8 -8 --------- Run | Scr Mat Mat Mat Gar Levels Raised 4 | . . 2 1 1 XP Earned 9235 | 3000 920 2885 1730 700 XP Spent 8900 | 2960 . 3000 1540 1400 Upgrades 45 | 24 . 6 7 8 Propulsion Slot 1 | . . 1 . . Utility Slot 1 | . . 1 . . Weapon Slot 1 | . . 1 . . Core Integrity 16 | 4 . . 6 6 Heat Dissipation 10 | 10 . . . . Inventory Capacity 4 | . . 3 1 . Terrain Scan Density 10 | 10 . . . . Melee Accuracy 2 | . . . . 2 Protomatter Created 185 | . . 185 . . Integrity Restored 516 | . . 516 . . Core 516 | . . 516 . . Protomatter Decayed 51 | . 38 13 . . Game ------ Seed WaveSeismicFalx Manual? 0 Play Time 00:20:01 Cumulative 275.9 hours Start 2019.12.31 @ 18:19:59 End 2019.12.31 @ 18:37:16 Sessions 1 Manual Loads 0 Difficulty Rogue Special Mode Winter2019/RPGLIKE Game No. 211 Rogue 147 Adventurer 2 Explorer 62 Win Type - Total 25 Types 20/3/1/0/0/0/1 Lore% 91 Gallery% 94 Achievement% 92 Wizard Run 0 Options --------- ASCII 0 Keyboard 0 Movement Numpad Keybinds 0 Fullscreen 1 Font 16/Terminus Map View 75x55 Tactical HUD 1 Map Filters NONE Filters NONE Steam 1 RUN: 7eb712af-dc18-4288-950d-e59bf02f8649